bitfinex/quotes_ETHUSD_20251217
["timestamp","ask_amount","ask_price","bid_price","bid_amount"]
[1765993163125,0.46438023,2864.0,2863.1,0.405504]
[1765993163330,0.46438023,2864.0,2863.2,4.7543]
[1765993163631,4.7235,2864.0,2863.2,0.53133]
[1765993163922,4.7235,2864.0,2863.1,0.405504]
[1765993164125,3.068,2864.3,2863.3,2.884904]
[1765993164296,0.559,2864.3,2863.1,0.405504]
[1765993164498,4.7235,2864.2,2863.1,0.405504]
[1765993164818,2.509,2864.2,2863.4,4.7543]
[1765993165134,5.0303,2864.2,2863.4,4.7543]
[1765993165633,0.3068,2864.2,2863.3,0.405504]
[1765993165925,0.559,2864.3,2863.2,0.964504]
[1765993166227,0.559,2864.3,2863.1,0.405504]
[1765993166428,0.46438023,2864.2,2862.6,2.2749]
[1765993166734,0.46438023,2864.2,2862.5,4.29666887]
[1765993166735,4.7235,2864.1,2862.7,5.3133]
[1765993166930,0.46438023,2863.5,2862.5,0.002]
[1765993167095,0.46438023,2863.5,2862.0,3.49401247]
[1765993167096,2.509,2863.3,2862.0,3.49401247]
[1765993167301,0.46438023,2863.2,2862.2,2.4794]
[1765993167500,0.46438023,2863.2,2862.4,4.7543]
[1765993167821,2.509,2862.8,2861.2,0.02463661]
[1765993168009,2.509,2862.5,2861.4,8.24902514]
[1765993168200,2.509,2862.3,2861.4,4.7543]
[1765993168403,2.509,2862.3,2861.5,4.05364261]
[1765993168833,2.509,2862.3,2861.5,0.559]
[1765993169032,2.509,2862.3,2861.4,2.4794]
[1765993169033,4.7235,2862.3,2861.4,2.4794]
[1765993169220,0.47235,2862.7,2860.8,4.7543]
[1765993169221,2.509,2862.0,2860.8,4.7543]
[1765993169409,2.509,2862.0,2861.2,5.76984531]
[1765993169614,2.509,2862.0,2861.2,5.77184531]
[1765993169812,2.509,2862.6,2861.5,2.4794]
[1765993170007,2.68685,2862.7,2861.6,3.0384]
[1765993170008,5.19585,2862.7,2861.6,3.0384]
[1765993170209,0.46438023,2862.5,2861.7,0.559]
[1765993170728,0.46438023,2862.3,2861.7,0.559]
[1765993171030,0.46438023,2862.3,2861.6,0.559]
[1765993171616,0.46438023,2862.3,2861.6,4.05354351]
[1765993172025,2.97338023,2862.3,2861.6,0.559]
[1765993172222,5.70666825,2862.3,2861.6,0.559]
[1765993172628,5.70666825,2862.3,2861.6,4.05353754]
[1765993172938,3.49216825,2862.3,2861.4,3.49470992]
[1765993173122,0.46438023,2862.2,2861.2,0.561]
[1765993173432,0.46438023,2862.3,2861.2,0.561]
[1765993173603,4.7235,2862.1,2860.9,0.559]
[1765993173804,0.559,2862.0,2860.7,0.559]
[1765993174005,0.46438023,2861.7,2861.0,3.4952128]
[1765993174204,1.02338023,2862.1,2860.7,0.559]
[1765993174406,0.46438023,2861.7,2860.7,5.3133]
[1765993174718,0.46438023,2861.7,2860.8,4.02681768]
[1765993174928,0.46438023,2862.0,2860.9,0.559]
[1765993175133,0.53548606,2862.6,2860.9,0.559]
[1765993175134,2.2145,2862.3,2861.3,2.4794]
[1765993175348,2.67888023,2862.3,2861.4,0.559]
[1765993175647,0.46438023,2862.2,2861.4,0.559]
[1765993175832,0.559,2862.6,2861.0,4.7543]
[1765993176145,0.46438023,2862.4,2861.0,0.559]
[1765993176344,1.04801684,2862.5,2860.8,0.964504]
[1765993176543,0.46438023,2862.4,2860.8,0.964504]
[1765993176745,0.46438023,2862.4,2859.7,0.4340934]
[1765993176746,0.02463661,2862.0,2859.7,0.4340934]
[1765993176946,3.144,2861.1,2860.2,3.49615743]
[1765993177148,3.144,2861.1,2859.4,3.49720219]
[1765993177149,0.46438023,2861.4,2860.5,2.2749]
[1765993177467,2.67888023,2861.7,2860.7,4.7543]
[1765993177621,2.2145,2861.5,2860.7,2.4794]
[1765993177816,2.67888023,2861.5,2860.9,0.002]
[1765993178048,3.04014825,2861.5,2860.9,0.002]
[1765993178346,2.2145,2861.4,2860.9,0.002]
[1765993178546,2.2145,2861.3,2860.9,0.002]
[1765993179047,2.2145,2861.3,2860.5,0.405504]
[1765993179249,2.2145,2861.3,2860.4,2.4794]
[1765993179549,0.46438023,2861.2,2859.9,3.49654525]
[1765993179743,0.6925,2861.1,2859.9,5.97594525]
[1765993179921,2.2145,2861.0,2860.0,4.7543]
[1765993180117,0.3511868,2861.3,2860.3,2.2749]
[1765993180118,0.81556703,2861.3,2860.3,2.2749]
[1765993180321,2.67888023,2861.4,2860.4,2.2749]
[1765993180622,2.2145,2861.3,2860.4,4.7656]
[1765993181138,0.02463661,2861.8,2860.4,4.7656]
[1765993181139,2.2285,2861.7,2860.7,2.4907]
[1765993181333,2.2285,2861.4,2859.7,0.002]
[1765993181646,2.7875,2861.3,2860.4,5.98670089]
[1765993182047,2.2285,2861.3,2860.5,2.4907]
[1765993182345,2.2285,2861.3,2860.4,9.91001543]
[1765993182346,0.02463661,2862.1,2861.0,2.4907]
[1765993182551,2.2285,2862.0,2861.0,3.0497]
[1765993182752,0.559,2862.1,2861.2,2.4907]
[1765993182959,2.2285,2862.0,2861.2,2.4907]
[1765993183119,2.2285,2862.0,2861.2,3.03157]
[1765993183757,2.2285,2862.0,2861.2,0.54087]
[1765993183952,2.2285,2861.9,2861.1,0.405504]
[1765993184543,2.2285,2861.9,2861.1,2.896204]
[1765993184854,2.2285,2862.2,2861.3,2.4907]
[1765993185551,0.7227,2861.9,2860.9,0.46438023]
[1765993185739,2.2285,2861.5,2860.6,1.02338023]
[1765993185943,2.2285,2861.3,2860.6,1.02538023]
[1765993186128,2.2285,2861.3,2860.6,0.561]
[1765993186323,2.2285,2861.3,2860.6,0.002]
[1765993186653,2.2285,2861.2,2860.6,0.002]
[1765993188227,0.735,2861.2,2860.6,0.002]
[1765993188429,2.2285,2860.9,2860.3,1.02338023]
[1765993189151,3.91495132,2861.5,2860.3,1.37478825]
[1765993189351,3.91495132,2861.5,2860.2,2.4907]
[1765993189352,0.46438023,2861.4,2860.2,2.4907]
[1765993190050,0.46438023,2861.4,2859.7,0.002]
[1765993190051,0.02463661,2861.3,2859.7,0.002]
[1765993190251,0.02463661,2861.3,2860.0,4.8497]
[1765993190452,0.559,2861.3,2859.9,0.559]
[1765993190654,0.559,2861.3,2860.1,2.4907]
[1765993190858,0.559,2861.3,2859.7,0.002]
[1765993190859,0.02463661,2861.2,2860.0,0.559]
[1765993191235,1.8204,2861.0,2860.0,0.559]
[1765993191536,1.8204,2861.0,2859.1,3.49756651]
[1765993191537,0.0095,2860.2,2858.5,2.4907]
[1765993191863,1.8204,2860.8,2859.3,2.4907]
[1765993192158,1.8204,2860.2,2859.1,5.4097]
[1765993192324,2.3804,2860.2,2859.1,5.4097]
[1765993192525,0.56,2860.2,2859.2,0.54097]
[1765993192725,1.8204,2859.9,2859.2,0.54097]
[1765993192953,1.8204,2859.9,2858.8,2.4907]
[1765993193130,1.8204,2859.9,2858.9,2.4907]
[1765993193454,1.8204,2859.9,2859.0,5.255204]
[1765993193652,0.0188,2859.6,2858.0,3.49885724]
[1765993193854,1.02438023,2859.8,2858.2,1.02438023]
[1765993194048,2.3992,2859.8,2858.8,2.4907]
[1765993194244,1.8204,2859.7,2858.8,4.88467971]
[1765993194451,0.02463661,2860.2,2859.0,2.359]
[1765993194452,2.28478023,2860.2,2859.0,2.359]
[1765993194645,2.3804,2860.2,2859.1,2.359]
[1765993194845,2.3804,2860.2,2859.2,2.4907]
[1765993195045,1.8438,2859.9,2859.2,0.54127]
[1765993195227,1.8438,2859.9,2859.0,0.562]
[1765993196647,0.46438023,2860.0,2859.1,4.8497]
[1765993196849,2.28478023,2860.1,2859.1,4.8497]
[1765993197066,1.8204,2860.1,2859.2,2.4907]
[1765993197530,1.8204,2860.1,2859.3,2.4907]
[1765993197731,1.8204,2860.4,2859.4,0.48497]
[1765993198057,0.0369,2860.3,2859.4,1.04497]
[1765993198232,0.0369,2860.3,2859.0,0.002]
[1765993198233,1.8204,2859.8,2859.0,0.002]
[1765993198436,1.8616,2859.7,2859.0,0.002]
[1765993198630,1.8204,2859.5,2858.6,0.56]
[1765993198966,1.8204,2859.3,2858.6,0.56]
[1765993199353,1.8204,2859.3,2858.4,0.46438023]
[1765993199554,1.864,2859.0,2858.0,0.561]
[1765993199734,1.8204,2859.0,2858.1,2.359]
[1765993199939,1.864,2858.9,2857.9,3.0517]
[1765993200134,0.46438023,2859.2,2857.9,0.561]
[1765993200135,1.8204,2858.7,2857.9,0.561]
[1765993200363,1.8204,2858.7,2857.4,2.4907]
[1765993200364,1.4869,2858.4,2857.4,2.8497]
[1765993200661,3.3073,2858.3,2857.4,0.34107]
[1765993200958,2.3814,2858.2,2857.3,0.561]
[1765993201163,0.561,2858.2,2857.1,2.359]
[1765993201362,0.561,2858.2,2856.4,0.02463661]
[1765993201363,2.28478023,2858.2,2856.5,2.359]
[1765993201568,0.561,2858.3,2856.6,2.39400665]
[1765993201752,0.561,2858.5,2856.6,2.85838688]
[1765993201952,1.8204,2858.1,2856.8,2.82338023]
[1765993202152,1.02538023,2858.3,2856.8,2.82338023]
[1765993202353,0.561,2858.2,2857.2,2.359]
[1765993202661,0.561,2858.2,2857.2,4.8497]
[1765993202835,1.02538023,2858.2,2857.2,4.8497]
[1765993203030,1.02538023,2858.2,2857.3,0.48497]
[1765993203253,0.46438023,2857.8,2856.8,4.8497]
[1765993203573,1.8204,2857.4,2856.4,4.8497]
[1765993203797,3.8679,2857.4,2856.4,4.8497]
[1765993204242,3.8679,2857.4,2856.3,0.002]
[1765993204243,3.3032,2857.2,2856.3,0.002]
[1765993204441,0.561,2857.4,2856.3,0.002]
[1765993204641,2.28478023,2857.0,2856.3,0.002]
[1765993204850,2.28478023,2857.0,2855.9,4.8497]
[1765993204851,0.46438023,2856.9,2855.9,4.8497]
[1765993205110,0.46438023,2856.9,2856.1,2.4907]
[1765993205237,0.562,2857.0,2855.8,0.514]
[1765993205438,3.8615,2857.0,2855.8,0.514]
[1765993205744,1.8204,2858.1,2855.9,10.50454965]
[1765993205946,0.46438023,2857.5,2856.1,0.405504]
[1765993206169,0.39369389,2858.9,2856.4,0.405504]
[1765993206464,0.562,2858.8,2857.0,2.359]
[1765993206665,2.28478023,2858.4,2857.2,4.8497]
[1765993206968,0.562,2858.3,2857.2,4.8497]
[1765993207151,1.8204,2858.4,2857.3,0.48497]
[1765993207352,1.8204,2858.7,2857.1,0.405504]
[1765993207551,1.8204,2858.4,2857.2,4.8497]
[1765993207781,3.2922,2858.4,2857.3,2.4907]
[1765993208068,1.74346854,2859.3,2857.1,3.50003796]
[1765993208069,3.49716732,2859.5,2857.9,4.8497]
[1765993208239,3.2887,2859.2,2857.8,4.8497]
[1765993208438,3.2887,2859.0,2857.9,2.97567]
[1765993208665,3.8507,2858.9,2857.9,2.97567]
[1765993208908,0.43014061,2859.4,2857.9,0.48497]
[1765993209038,0.46438023,2859.0,2857.5,4.8497]
[1765993209240,0.46438023,2858.7,2857.5,2.1828]
[1765993209440,0.46438023,2858.7,2857.7,8.28311763]
[1765993209665,1.8204,2858.8,2857.8,2.601]
[1765993209868,1.4613,2859.0,2857.8,4.7838]
[1765993210074,0.562,2858.9,2858.0,2.601]
[1765993210257,3.74258023,2858.8,2857.9,3.36104353]
[1765993210468,0.46438023,2858.7,2857.9,2.601]
[1765993210774,0.562,2858.9,2857.9,4.8216]
[1765993211275,1.8204,2858.8,2857.9,4.8216]
[1765993211475,1.8204,2858.8,2857.9,8.32066585]
[1765993211641,12.93367157,2859.6,2857.9,8.32066585]
[1765993211642,0.02463661,2860.0,2857.9,10.49721133]
[1765993211985,1.451,2859.0,2858.0,1.04972113]
[1765993212153,1.02738023,2858.9,2858.0,3.24772113]
[1765993212339,0.563,2859.0,2858.1,2.6236]
[1765993212546,0.563,2859.0,2858.0,1.04972113]
[1765993212547,0.46438023,2858.9,2858.0,1.04972113]
[1765993212771,0.563,2859.0,2858.2,4.8216]
[1765993213116,0.46438023,2859.0,2857.9,4.8216]
[1765993213317,0.563,2858.9,2857.9,4.8216]
[1765993213607,0.563,2858.9,2858.0,4.8216]
[1765993213793,0.563,2858.9,2858.1,0.83206572]
[1765993213972,0.563,2858.9,2858.1,5.65366572]
[1765993214171,3.2616,2858.8,2857.6,5.3836]
[1765993214366,3.2616,2858.8,2857.2,4.8216]
[1765993214367,1.4412,2858.7,2857.2,4.8216]
[1765993214587,0.86988423,2858.8,2857.3,3.49973426]
[1765993214771,3.2616,2858.7,2857.3,3.49973426]
[1765993214973,0.562,2858.6,2857.8,4.8216]
[1765993215202,0.563,2858.6,2857.8,5.30376]
[1765993215407,0.563,2858.6,2857.9,2.6236]
[1765993215907,1.4379,2859.2,2858.1,2.198]
[1765993216106,0.46438023,2859.1,2857.9,6.99812237]
[1765993216278,0.46438023,2859.1,2857.9,7.56012237]
[1765993216481,1.02638023,2859.1,2858.0,1.15414465]
[1765993216680,0.562,2859.1,2858.1,2.6236]
[1765993216893,0.001,2859.4,2858.3,0.46438023]
[1765993217094,0.001,2859.4,2858.4,0.562]
[1765993217308,0.001,2859.4,2858.9,2.6236]
[1765993217512,0.562,2859.8,2859.1,2.6236]
[1765993217980,0.562,2859.8,2858.9,0.48216]
[1765993218188,3.2499,2859.7,2858.8,0.562]
[1765993218497,3.2499,2859.7,2858.7,2.6236]
[1765993218871,1.8214,2859.6,2858.7,2.6236]
[1765993219097,2.20259,2859.6,2858.7,2.6236]
[1765993219691,0.38119,2859.6,2858.7,5.28598023]
[1765993219891,1.88978023,2860.1,2859.0,4.8216]
[1765993220080,0.562,2859.7,2859.0,4.8216]
[1765993220799,0.562,2859.7,2858.6,3.96257047]
[1765993220800,0.562,2859.7,2858.7,3.49800672]
[1765993220990,0.562,2859.7,2858.8,3.49787922]
[1765993221196,0.563,2859.7,2858.7,4.8216]
[1765993221501,2.3844,2859.7,2858.8,0.52859802]
[1765993221703,2.3844,2859.7,2858.8,8.84807466]
[1765993221905,0.563,2859.7,2858.9,4.8216]
[1765993222110,0.563,2859.7,2859.0,2.6236]
[1765993222407,2.3844,2859.7,2858.8,3.15219802]
[1765993222579,2.3844,2859.7,2858.2,3.9630251]
[1765993222580,3.2378,2859.5,2858.3,2.198]
[1765993222903,3.2378,2859.5,2858.5,0.46438023]
[1765993223120,0.94208,2859.6,2858.8,4.8216]
[1765993223332,0.562,2859.6,2858.8,4.85657971]
[1765993223489,0.001,2859.7,2859.0,4.8216]
[1765993224006,0.001,2859.7,2857.8,0.97117684]
[1765993224218,0.001,2859.7,2858.1,0.46438023]
[1765993224219,3.2329,2859.7,2858.1,0.46438023]
[1765993224500,3.2329,2859.7,2858.6,8.31971637]
[1765993224815,3.61139,2859.6,2858.6,5.3836]
[1765993225179,3.61139,2859.6,2858.6,8.88180942]
[1765993225375,3.61139,2859.6,2858.6,4.8216]
[1765993225770,0.37949,2859.6,2858.7,3.49802811]
[1765993225975,0.562,2859.6,2858.7,8.31966635]
[1765993226215,0.562,2859.6,2858.8,4.8216]
[1765993226388,0.001,2859.7,2858.8,4.8216]
[1765993226580,0.001,2859.7,2858.9,4.8216]
[1765993226889,1.8214,2859.6,2858.6,8.31975667]
[1765993227101,1.8214,2859.6,2858.7,0.88817567]
[1765993227480,1.8214,2859.6,2858.7,5.70977567]
[1765993228007,1.8214,2859.6,2857.3,3.5243951]
[1765993228008,1.402,2859.1,2857.9,2.198]
[1765993228216,0.46438023,2859.5,2857.9,5.3836]
[1765993228217,3.7826,2859.0,2857.9,5.3836]
[1765993228507,1.8214,2858.8,2858.0,0.46438023]
[1765993228697,3.2206,2858.8,2858.0,0.46438023]
[1765993228928,3.2206,2858.8,2857.6,2.198]
[1765993228929,1.8214,2858.7,2857.6,2.198]
[1765993229112,1.8214,2858.6,2857.6,4.8216]
[1765993229278,2.3834,2858.5,2857.6,4.8216]
[1765993229479,3.7799,2858.5,2857.6,4.8216]
[1765993230116,2.3834,2858.5,2857.6,4.8216]
[1765993230322,0.562,2858.5,2857.5,0.562]
[1765993230504,0.562,2858.5,2857.8,4.8216]
[1765993231384,3.7745,2858.5,2857.5,3.1856]
[1765993231584,3.7745,2858.5,2857.5,4.8216]
[1765993232898,3.7745,2858.5,2857.6,0.0349944]
[1765993233100,3.7745,2858.5,2857.6,5.58121973]
[1765993233526,0.46438023,2858.7,2857.8,2.6236]
[1765993233822,0.562,2858.5,2857.8,4.8216]
[1765993236523,3.58556,2858.8,2857.7,2.6236]
[1765993236719,1.8214,2859.0,2857.8,7.55938954]
[1765993236890,0.561,2858.9,2857.8,4.06019436]
[1765993237092,1.8214,2858.8,2857.8,5.3826]
[1765993237419,1.8214,2858.8,2857.9,4.8216]
[1765993237620,1.9393,2858.9,2858.0,0.8881781]
[1765993237809,0.561,2858.9,2857.9,4.8216]
[1765993238012,0.561,2858.9,2857.8,4.06018102]
[1765993238213,0.001,2859.6,2858.1,2.6236]
[1765993238415,0.561,2859.5,2858.5,4.8216]
[1765993238597,0.561,2859.5,2858.6,0.561]
[1765993239127,0.001,2859.6,2858.6,0.561]
[1765993239331,0.001,2859.6,2858.7,5.28598023]
[1765993239503,0.001,2859.6,2858.8,5.40629802]
[1765993239707,0.001,2859.4,2858.8,5.40629802]
[1765993239936,0.001,2859.4,2858.8,0.58469802]
[1765993240147,0.001,2859.4,2858.6,0.561]
[1765993240426,0.001,2859.4,2858.8,3.49797117]
[1765993240640,0.001,2859.6,2858.8,6.99594234]
[1765993240795,3.1905,2860.6,2859.0,4.7029]
[1765993240997,3.1905,2860.6,2859.1,0.561]
[1765993240998,1.3681,2860.5,2859.1,0.561]
[1765993241218,0.46438023,2860.2,2859.2,4.7029]
[1765993241530,0.561,2860.2,2859.1,0.561]
[1765993241822,2.3834,2860.2,2859.2,4.7029]
[1765993242021,3.7491,2860.2,2859.2,4.7029]
[1765993243345,3.7491,2860.2,2859.0,3.49771478]
[1765993243346,0.561,2860.2,2859.0,0.561]
[1765993243528,3.1835,2860.0,2859.0,0.561]
[1765993243842,0.561,2860.0,2859.4,2.4863]
[1765993244018,3.1835,2859.9,2859.0,1.02538023]
[1765993244331,3.1835,2859.9,2859.1,0.57282802]
[1765993244502,3.1835,2859.9,2859.0,1.02538023]
[1765993244832,1.8224,2859.6,2858.5,3.49828601]
[1765993245023,3.1812,2859.5,2858.6,0.561]
[1765993245223,3.7422,2859.5,2858.6,0.46438023]
[1765993245431,3.179,2859.2,2858.2,0.561]
[1765993245806,1.8224,2859.2,2858.2,0.561]
[1765993246128,0.37422,2859.4,2858.2,0.561]
[1765993246129,0.37422,2859.4,2858.4,3.49837727]
[1765993246467,4.20218023,2859.5,2858.5,4.7029]
[1765993246801,3.7378,2859.5,2858.5,4.7029]
[1765993247234,3.7378,2859.5,2858.5,8.20119673]
[1765993247432,0.405504,2860.1,2858.6,0.561]
[1765993247620,0.46438023,2859.8,2858.7,2.4863]
[1765993247827,0.561,2859.9,2858.8,0.30473]
[1765993248026,0.561,2859.9,2859.1,2.2166]
[1765993248238,0.561,2859.9,2859.2,4.7029]
[1765993249631,0.561,2859.9,2859.2,2.2166]
[1765993250135,0.561,2859.9,2859.3,4.7029]
[1765993250919,0.561,2859.9,2857.7,0.02463661]
[1765993251148,0.86988423,2859.7,2857.9,3.49905886]
[1765993251354,0.86988423,2859.7,2858.0,2.56670589]
[1765993251355,3.7296,2859.2,2858.0,2.56670589]
[1765993251660,4.2906,2859.1,2858.1,4.7029]
[1765993251828,0.46438023,2858.9,2857.7,4.7029]
[1765993252031,0.46438023,2858.9,2856.5,1.0513902]
[1765993252032,0.46438023,2858.9,2857.5,0.561]
[1765993252227,0.46438023,2858.9,2857.5,4.06050032]
[1765993252432,0.46438023,2858.9,2857.6,3.499432]
[1765993252621,0.561,2859.1,2857.6,3.49944008]
[1765993252822,4.05861057,2859.1,2857.6,3.49944008]
[1765993253019,0.46438023,2858.9,2857.9,4.7029]
[1765993253446,0.46438023,2858.9,2857.8,0.35214401]
[1765993253621,0.46438023,2858.9,2857.8,0.002]
[1765993254152,0.46438023,2858.9,2857.9,4.7029]
[1765993254338,4.18968023,2858.9,2857.9,4.7029]
[1765993254736,7.68760695,2858.9,2857.9,4.7029]
[1765993254942,0.46438023,2858.7,2857.9,4.7029]
[1765993255142,0.46438023,2858.7,2857.8,4.7049]
[1765993255143,0.46540605,2858.7,2857.8,4.7049]
[1765993255453,0.46438023,2858.9,2857.8,0.002]
[1765993255650,3.7239,2858.8,2857.8,4.7049]
[1765993255830,0.46438023,2858.7,2857.8,4.7049]
[1765993256230,0.46438023,2858.7,2857.9,0.002]
[1765993256465,0.45229908,2859.0,2858.0,4.7029]
[1765993256655,0.46438023,2858.8,2858.0,4.7029]
[1765993256951,7.74039578,2858.9,2857.9,0.002]
[1765993256952,0.52001793,2858.9,2857.9,0.002]
[1765993257151,0.561,2859.1,2858.0,4.7029]
[1765993257451,4.18688023,2859.2,2857.9,4.0609642]
[1765993257622,0.56,2859.1,2857.9,4.0609642]
[1765993257832,0.56,2859.1,2858.1,4.7029]
[1765993258027,0.56,2859.1,2858.0,3.90444472]
[1765993258227,0.56,2859.1,2858.5,2.4863]
[1765993258625,0.56,2859.1,2858.3,0.56]
[1765993258856,0.56,2859.1,2858.4,4.7029]
[1765993260244,0.56,2859.1,2858.3,0.56]
[1765993260663,0.56,2859.1,2858.5,4.7029]
[1765993261154,0.56,2859.3,2858.5,4.7029]
[1765993261479,2.28678023,2859.5,2858.5,4.7029]
[1765993261653,1.01849661,2859.4,2858.5,4.7029]
[1765993261856,4.18018023,2859.3,2858.5,4.7029]
[1765993262365,0.46438023,2859.3,2858.3,0.56]
[1765993262765,0.46438023,2859.3,2858.4,4.7029]
[1765993263178,4.17758023,2859.2,2858.3,0.56]
[1765993263393,4.69731791,2859.2,2858.1,4.7029]
[1765993263681,3.7132,2859.1,2857.9,0.562]
[1765993263860,4.74293179,2859.0,2858.0,4.7029]
[1765993264579,0.45849661,2859.4,2858.1,3.49881234]
[1765993264867,0.56,2859.4,2858.1,3.49882789]
[1765993265171,0.56,2859.4,2858.2,4.7029]
[1765993265330,0.56,2859.4,2858.4,4.7029]
[1765993265534,8.23233469,2859.4,2858.4,4.7029]
[1765993265870,4.73508023,2859.4,2858.4,4.7029]
[1765993266074,0.47350802,2859.3,2858.4,4.7029]
[1765993266234,0.47350802,2859.3,2858.5,2.2166]
[1765993266431,0.56,2859.4,2858.8,4.7029]
[1765993266627,0.56,2859.4,2858.4,0.405504]
[1765993266829,4.05733411,2859.4,2857.8,0.002]
[1765993267077,3.7094,2859.3,2858.2,5.57278423]
[1765993267376,3.7094,2859.3,2858.3,4.7029]
[1765993267542,1.8224,2859.1,2858.3,4.7029]
[1765993267732,3.7082,2859.1,2858.3,4.7029]
[1765993268065,0.42694,2859.2,2858.1,0.405504]
[1765993268267,0.42694,2859.2,2858.2,4.7029]
[1765993268563,0.42694,2859.2,2858.1,0.86988423]
[1765993268765,0.42694,2859.2,2858.1,0.405504]
[1765993269069,0.42694,2859.2,2858.4,4.7779]
[1765993269371,0.42694,2859.2,2858.5,4.7779]
[1765993269934,0.42694,2859.2,2858.4,0.56]
[1765993270164,0.42694,2859.2,2858.5,4.7779]
[1765993270358,4.2682,2859.4,2858.5,4.7779]
[1765993270573,2.3824,2859.4,2858.4,0.56]
[1765993270777,3.7022,2859.3,2858.4,0.56]
[1765993271334,0.56,2859.4,2858.4,0.56]
[1765993271559,0.56,2859.4,2858.5,0.405504]
[1765993271871,0.001,2859.9,2858.7,0.405504]
[1765993272174,0.001,2859.9,2859.0,2.5425]
[1765993272469,0.001,2859.9,2859.1,4.803]
[1765993272954,0.41652802,2859.8,2859.1,4.803]
[1765993273166,0.41652802,2859.8,2858.9,0.56]
[1765993273348,0.001,2859.9,2858.9,0.56]
[1765993273349,0.001,2859.9,2859.2,0.405504]
[1765993273662,3.6998,2859.9,2858.3,4.803]
[1765993273862,5.667556,2859.8,2857.8,0.002]
[1765993274064,30.0,2859.7,2858.1,0.46438023]
[1765993274256,0.001,2859.9,2858.5,5.208504]
[1765993274257,1.8224,2859.5,2858.5,5.208504]
[1765993274561,0.56,2859.6,2858.5,5.363]
[1765993274771,3.6976,2859.5,2858.5,5.363]
[1765993274967,3.6976,2859.3,2858.5,0.56]
[1765993275139,3.6945,2859.3,2858.5,0.56]
[1765993275540,3.92303292,2859.4,2858.5,0.56]
[1765993275736,3.92303292,2859.4,2858.3,4.803]
[1765993276095,7.42030584,2859.4,2858.2,0.86988423]
[1765993276242,7.42030584,2859.4,2858.1,4.803]
[1765993276243,3.6935,2859.0,2858.1,4.803]
[1765993276437,1.8224,2858.9,2858.1,4.803]
[1765993276642,3.6935,2858.9,2858.1,4.803]
[1765993278039,7.19141906,2858.9,2858.1,4.803]
[1765993278493,3.6914,2858.8,2857.9,0.002]
[1765993278777,0.71893191,2858.7,2858.0,2.5425]
[1765993278999,4.2514,2859.1,2857.9,0.002]
[1765993279278,0.56,2859.1,2858.5,2.5425]
[1765993279440,1.02438023,2859.1,2858.5,4.803]
[1765993279765,0.56,2859.1,2857.9,0.407504]
[1765993280071,0.42576,2859.4,2858.4,0.405504]
[1765993280275,0.001,2859.9,2859.1,2.5425]
[1765993280450,0.001,2859.9,2859.5,4.803]
[1765993280647,0.001,2859.9,2859.0,0.405504]
[1765993280849,0.001,2859.9,2859.2,0.405504]
[1765993281372,0.001,2860.2,2859.5,5.208504]
[1765993281671,0.001,2860.2,2859.5,4.803]
[1765993281838,0.001,2860.2,2859.6,2.5425]
[1765993282044,0.001,2860.2,2859.6,4.803]
[1765993283741,0.001,2859.9,2859.8,2.2605]
[1765993283942,0.001,2860.2,2859.6,4.803]
[1765993284348,0.001,2860.2,2859.7,4.803]
[1765993284784,0.001,2860.2,2859.6,0.5768504]
[1765993284957,0.001,2860.2,2859.5,0.56]
[1765993285154,0.46438023,2860.7,2859.8,2.2605]
[1765993285360,3.49558309,2860.8,2859.9,2.2605]
[1765993285361,0.46438023,2860.8,2859.9,2.2605]
[1765993285687,5.92023318,2860.9,2859.6,0.405504]
[1765993285688,0.561,2860.9,2859.6,0.405504]
[1765993285867,0.561,2860.9,2860.2,4.803]
[1765993286257,0.561,2860.9,2860.0,0.405504]
[1765993286556,0.001,2861.1,2860.1,0.03496381]
[1765993286754,0.001,2861.3,2860.2,0.39369158]
[1765993286991,5.35771929,2861.3,2860.4,2.5425]
[1765993287152,4.1369,2861.2,2860.3,2.8205]
[1765993287358,2.2751,2861.2,2860.4,4.803]
[1765993288475,0.001,2861.3,2860.7,2.2605]
[1765993288673,9.59467733,2861.7,2861.1,4.803]
[1765993288674,0.001,2861.7,2861.1,4.803]
[1765993288876,2.2751,2861.5,2860.1,2.5425]
[1765993289059,0.46538023,2861.7,2860.3,0.405504]
[1765993289254,0.001,2861.7,2860.7,2.2605]
[1765993289465,6.23494272,2861.7,2860.8,0.56]
[1765993289761,0.80938427,2861.6,2860.8,0.56]
[1765993289970,0.80938427,2861.6,2860.8,3.1025]
[1765993290187,0.80938427,2861.6,2861.0,2.5425]
[1765993290489,0.001,2861.7,2860.9,2.5425]
[1765993290670,0.001,2862.1,2860.8,0.56]
[1765993290865,0.46438023,2862.0,2860.8,0.56]
[1765993291067,0.46438023,2862.0,2860.6,0.46438023]
[1765993291068,2.2751,2861.5,2860.6,0.56]
[1765993291288,2.2751,2861.5,2860.4,2.2605]
[1765993291289,1.8581,2861.3,2860.4,2.2605]
[1765993291612,2.2751,2861.2,2860.4,2.8205]
[1765993291774,2.2751,2861.0,2860.2,2.5425]
[1765993291974,1.11235184,2860.9,2860.2,2.5425]
[1765993292790,0.46438023,2861.1,2860.3,2.2605]
[1765993293098,3.9604944,2861.2,2860.2,4.803]
[1765993293407,2.2751,2861.1,2860.2,4.803]
[1765993294197,5.77027595,2861.1,2860.2,4.803]
[1765993294393,2.2751,2861.0,2860.2,4.803]